lending/lending_fUSD_20260306
["ID","MTS","AMOUNT","RATE_DAILY","PERIOD"]
[407857111,1772836939155,-1436.089081,0.0004715,120]
[407857112,1772836939199,-4252.23317,0.0004715,120]
[407857113,1772836939243,-221.822953,0.0004715,120]
[407857114,1772836939287,-1436.089081,0.0004715,120]
[407857115,1772836939331,-4252.23317,0.0004715,120]
[407857116,1772836939375,-151.0,0.0004715,120]
[407857117,1772836939419,-1436.089081,0.0004715,120]
[407857118,1772836939463,-151.0,0.0004715,120]
[407857119,1772836939506,-4252.23317,0.0004715,120]
[407857120,1772836939549,-1436.089081,0.0004715,120]
[407857121,1772836939591,-151.0,0.0004715,120]
[407857122,1772836939633,-4252.23317,0.0004715,120]
[407857123,1772836939674,-1436.089081,0.0004715,120]
[407857124,1772836939847,-724.615101,0.0004715,120]
[407857125,1772836939921,-4252.23317,0.0004715,120]
[407857126,1772836939965,-724.615101,0.0004715,120]
[407857127,1772836940009,-151.0,0.0004715,120]
[407857128,1772836940053,-724.615101,0.0004715,120]
[407857129,1772836940096,-1436.089081,0.0004715,120]
[407857130,1772836940140,-151.0,0.0004715,120]
[407857131,1772836940184,-151.0,0.0004715,120]
[407857132,1772836940229,-1436.089081,0.0004715,120]
[407857133,1772836940278,-1436.089081,0.0004715,120]
[407857134,1772836940325,-724.615101,0.0004715,120]
[407857135,1772836940371,-724.615101,0.0004715,120]
[407857136,1772836940420,-151.0,0.0004715,120]
[407857137,1772836940470,-724.615101,0.0004715,120]
[407857138,1772836940519,-151.0,0.0004715,120]
[407857139,1772836940563,-1436.089081,0.0004715,120]
[407857140,1772836940606,-257.339463,0.0004715,120]
[407857141,1772836940648,-1436.089081,0.0004715,120]
[407857142,1772836940690,-1436.089081,0.0004715,120]
[407857143,1772836940732,-180.968243,0.0004715,120]
[407857144,1772836940776,-724.615101,0.0004715,120]
[407857145,1772836940820,-724.615101,0.0004715,120]
[407857146,1772836940870,-724.615101,0.0004715,120]
[407857147,1772836940915,-198.565575,0.0004715,120]
[407857148,1772836940959,-724.615101,0.0004715,120]
[407857149,1772836941002,-198.565575,0.0004715,120]
[407857150,1772836941045,-724.615101,0.0004715,120]
[407857151,1772836941089,-724.615101,0.0004715,120]
[407857152,1772836941130,-198.565575,0.0004715,120]
[407857153,1772836941171,-198.565575,0.0004715,120]
[407857154,1772836941213,-198.565575,0.0004715,120]
[407857155,1772836941255,-198.565575,0.0004715,120]
[407857156,1772836941298,-198.565575,0.0004715,120]
[407857157,1772836941346,-198.565575,0.0004715,120]
[407857158,1772836941388,-198.565575,0.0004715,120]
[407857159,1772836941428,-198.565575,0.0004715,120]
[407857160,1772836941470,-151.0,0.0004715,120]
[407857161,1772836941510,-198.565575,0.0004715,120]
[407857162,1772836941550,-151.0,0.0004715,120]
[407857163,1772836941590,-198.565575,0.0004715,120]
[407857164,1772836941630,-151.0,0.0004715,120]
[407857165,1772836941670,-151.0,0.0004715,120]
[407857166,1772836941711,-151.0,0.0004715,120]
[407857167,1772836941751,-151.0,0.0004715,120]
[407857168,1772836941791,-151.0,0.0004715,120]
[407857169,1772836941832,-151.0,0.0004715,120]
[407857170,1772836941878,-151.0,0.0004715,120]
[407857171,1772836941920,-151.0,0.0004715,120]
[407857172,1772836941962,-166.776747,0.0004715,120]
[407857173,1772836942002,-151.0,0.0004715,120]
[407857174,1772836942042,-151.0,0.0004715,120]
[407857175,1772836942083,-151.0,0.0004715,120]
[407857176,1772836942124,-151.0,0.0004715,120]
[407857177,1772836942165,-151.0,0.0004715,120]
[407857178,1772836942205,-151.0,0.0004715,120]
[407857179,1772836942247,-151.0,0.0004715,120]
[407857180,1772836942287,-151.0,0.0004715,120]
[407857181,1772836942327,-151.0,0.0004715,120]
[407857182,1772836942367,-151.0,0.0004715,120]
[407857183,1772836942412,-151.0,0.0004715,120]
[407857184,1772836942454,-151.0,0.0004715,120]
[407857185,1772836942496,-151.0,0.0004715,120]
[407857186,1772836942538,-151.0,0.0004715,120]
[407857187,1772836942580,-154.222734,0.0004715,120]
[407857188,1772836942622,-151.0,0.0004715,120]
[407857189,1772836942679,-151.0,0.0004715,120]
[407857190,1772836942735,-203.45485,0.0004715,120]
[407857191,1772836942792,-151.0,0.0004715,120]
[407857192,1772836942847,-151.0,0.0004715,120]
[407857193,1772836942901,-151.0,0.0004715,120]
[407857194,1772836942958,-151.0,0.0004715,120]
[407857195,1772836943013,-151.0,0.0004715,120]
[407857196,1772836943072,-151.0,0.0004715,120]
[407857197,1772836943128,-151.0,0.0004715,120]
[407857198,1772836943190,-151.0,0.0004715,120]
[407857199,1772836943265,-14006.923144,0.0004715,120]
[407857200,1772836943325,-151.0,0.0004715,120]
[407857201,1772836943395,-14006.923144,0.0004715,120]
[407857202,1772836943450,-14006.923144,0.0004715,120]
[407857203,1772836943511,-151.0,0.0004715,120]
[407857204,1772836943565,-14006.923144,0.0004715,120]
[407857205,1772836943622,-151.0,0.0004715,120]
[407857206,1772836943681,-14006.923144,0.0004715,120]
[407857207,1772836943740,-151.0,0.0004715,120]
[407857208,1772836943796,-14006.923144,0.0004715,120]
[407857209,1772836943852,-14006.923144,0.0004715,120]
[407857210,1772836943911,-14006.923144,0.0004715,120]
[407857211,1772836943964,-14006.923144,0.0004715,120]
[407857212,1772836944018,-14006.923144,0.0004715,120]
[407857213,1772836944070,-14006.923144,0.0004715,120]
[407857214,1772836944123,-14006.923144,0.0004715,120]
[407857215,1772836944177,-151.0,0.0004715,120]
[407857216,1772836944231,-151.0,0.0004715,120]
[407857217,1772836944284,-151.0,0.0004715,120]
[407857218,1772836944338,-164.808243,0.0004715,120]
[407857219,1772836944402,-151.0,0.0004715,120]
[407857220,1772836944468,-151.0,0.0004715,120]
[407857221,1772836944525,-151.0,0.0004715,120]
[407857222,1772836944581,-159.49661076,0.00047153,30]
[407857223,1772836944638,-237.39121081,0.00047153,30]
[407857224,1772836944691,-178.56416906,0.00047153,30]
[407857225,1772836944743,-259.39398879,0.00047153,30]
[407857226,1772836944801,-496.10721813,0.00047153,30]
[407857227,1772836944854,-196.401106,0.00047153,30]
[407857228,1772836944918,-151.43,0.00047176,120]
[407857229,1772836944972,-150.0,0.00047181,30]
[407857230,1772836945037,-699.05,0.00047187,120]
[407857231,1772836945096,-1042.7,0.00047191,120]
[407857232,1772836945151,-150.0,0.00047201,30]
[407857233,1772836945205,-159.49661076,0.00047204,30]
[407857234,1772836945256,-237.39121081,0.00047204,30]
[407857235,1772836945313,-178.56416906,0.00047204,30]
[407857236,1772836945370,-259.39398879,0.00047204,30]
[407857237,1772836945425,-496.10721813,0.00047204,30]
[407857238,1772836945479,-196.401106,0.00047204,30]
[407857239,1772836945534,-729.77,0.00047214,120]
[407857240,1772836945586,-3000.0,0.00047214,120]
[407857241,1772836945637,-1065.21447242,0.0004722,30]
[407857242,1772836945693,-150.0,0.00047231,30]
[407857243,1772836945746,-24849.85281469,0.00047232,30]
[407857244,1772836945799,-151.65,0.00047233,120]
[407857245,1772836945850,-151.0,0.00047233,120]
[407857246,1772836945900,-151.0,0.00047234,120]
[407857247,1772836945955,-150.0,0.00047236,30]
[407857248,1772836946012,-151.0,0.00047237,120]
[407857249,1772836946064,-151.0,0.00047237,120]
[407857250,1772836946113,-240.313891,0.00047237,120]
[407857251,1772836946167,-240.313891,0.00047237,120]
[407857252,1772836946220,-240.313891,0.00047237,120]
[407857253,1772836946266,-151.0,0.00047237,120]
[407857254,1772836946311,-240.313885,0.00047237,120]
[407857255,1772836946357,-151.0,0.00047237,120]
[407857256,1772836946401,-151.0,0.00047237,120]
[407857257,1772836946445,-151.0,0.00047237,120]
[407857258,1772836946881,-151.0,0.00047237,120]
[407857259,1772836946929,-151.0,0.00047237,120]
[407857260,1772836946974,-151.0,0.00047237,120]
[407857261,1772836947018,-251.041864,0.00047237,120]
[407857262,1772836947060,-151.0,0.00047237,30]
[407857263,1772836947103,-151.0,0.00047237,30]
[407857264,1772836947147,-151.0,0.00047237,30]
[407857265,1772836947190,-151.0,0.00047237,30]
[407857266,1772836947233,-167.586484,0.00047237,120]
[407857267,1772836947276,-167.586484,0.00047237,120]
[407857268,1772836947321,-167.586484,0.00047237,120]
[407857269,1772836947365,-167.586484,0.00047237,120]
[407857270,1772836947410,-167.586484,0.00047237,120]
[407857271,1772836947453,-167.586484,0.00047237,120]
[407857272,1772836947496,-167.586484,0.00047237,120]
[407857273,1772836947539,-167.586484,0.00047237,120]
[407857274,1772836947579,-167.586484,0.00047237,120]
[407857275,1772836947619,-167.586484,0.00047237,120]
[407857276,1772836947661,-167.586484,0.00047237,120]
[407857277,1772836947704,-167.586484,0.00047237,120]
[407857278,1772836947747,-151.0,0.00047237,120]
[407857279,1772836947789,-151.0,0.00047237,120]
[407857280,1772836947832,-151.0,0.00047237,120]
[407857281,1772836947878,-151.0,0.00047237,120]
[407857282,1772836947920,-151.0,0.00047237,120]
[407857283,1772836947961,-151.0,0.00047237,120]
[407857284,1772836948003,-151.0,0.00047237,120]
[407857285,1772836948043,-151.0,0.00047237,120]
[407857286,1772836948084,-151.0,0.00047237,120]
[407857287,1772836948125,-151.0,0.00047237,120]
[407857288,1772836948168,-151.0,0.00047237,120]
[407857289,1772836948212,-151.0,0.00047237,120]
[407857290,1772836948254,-151.0,0.00047237,120]
[407857291,1772836948299,-151.0,0.00047237,120]
[407857292,1772836948345,-439.676529,0.00047237,120]
[407857293,1772836948392,-439.676529,0.00047237,120]
[407857294,1772836948437,-439.676529,0.00047237,120]
[407857295,1772836948483,-439.676529,0.00047237,120]
[407857296,1772836948530,-439.676529,0.00047237,120]
[407857297,1772836948578,-439.676529,0.00047237,120]
[407857298,1772836948623,-439.676529,0.00047237,120]
[407857299,1772836948666,-439.676529,0.00047237,120]
[407857300,1772836948711,-439.676529,0.00047237,120]
[407857301,1772836948756,-439.676529,0.00047237,120]
[407857302,1772836948801,-439.676529,0.00047237,120]
[407857303,1772836948850,-439.676529,0.00047237,120]
[407857304,1772836948898,-151.0,0.00047237,120]
[407857305,1772836948943,-293.355143,0.00047237,120]
[407857306,1772836948987,-254.268911,0.00047237,120]
[407857307,1772836949028,-162.173486,0.00047237,120]
[407857308,1772836949069,-162.173486,0.00047237,120]
[407857309,1772836949110,-162.173486,0.00047237,120]
[407857310,1772836949151,-162.173486,0.00047237,120]
[407857311,1772836949202,-162.173486,0.00047237,120]
[407857312,1772836949251,-162.173486,0.00047237,120]
[407857313,1772836949298,-162.173486,0.00047237,120]
[407857314,1772836949344,-162.173486,0.00047237,120]
[407857315,1772836949390,-162.173486,0.00047237,120]
[407857316,1772836949441,-162.173486,0.00047237,120]
[407857317,1772836949486,-162.173486,0.00047237,120]
[407857318,1772836949532,-162.173486,0.00047237,120]
[407857319,1772836949578,-151.0,0.00047237,120]
[407857320,1772836949622,-151.0,0.00047237,120]
[407857321,1772836949663,-151.0,0.00047237,120]
[407857322,1772836949705,-151.0,0.00047237,120]
[407857323,1772836949748,-151.0,0.00047237,120]
[407857324,1772836949790,-151.0,0.00047237,120]
[407857325,1772836949831,-151.0,0.00047237,120]
[407857326,1772836949875,-151.0,0.00047237,120]
[407857327,1772836949916,-151.0,0.00047237,120]
[407857328,1772836949958,-151.0,0.00047237,120]
[407857329,1772836949999,-151.0,0.00047237,120]
[407857330,1772836950039,-151.0,0.00047237,120]
[407857331,1772836950081,-151.0,0.00047237,120]
[407857332,1772836950122,-151.0,0.00047237,120]
[407857333,1772836950163,-151.0,0.00047237,120]
[407857334,1772836950203,-151.0,0.00047237,120]
[407857335,1772836950244,-151.0,0.00047237,120]
[407857336,1772836950286,-261.062888,0.00047237,120]
[407857337,1772836950329,-151.0,0.00047237,120]
[407857338,1772836950372,-151.0,0.00047237,120]
[407857339,1772836950413,-299.608118,0.00047237,120]
[407857340,1772836950456,-151.0,0.00047237,120]
[407857341,1772836950498,-151.0,0.00047237,120]
[407857342,1772836950542,-156.511797,0.00047237,120]
[407857343,1772836950584,-1158.388071,0.00047237,120]
[407857344,1772836950626,-1158.388071,0.00047237,120]
[407857345,1772836950669,-1158.388071,0.00047237,120]
[407857346,1772836950714,-1158.388071,0.00047237,120]
[407857347,1772836950761,-1158.388071,0.00047237,120]
[407857348,1772836950806,-223.396597,0.00047237,120]
[407857349,1772836950852,-1158.388071,0.00047237,120]
[407857350,1772836950899,-223.396597,0.00047237,120]
[407857351,1772836950950,-223.396597,0.00047237,120]
[407857352,1772836950993,-1158.388071,0.00047237,120]
[407857353,1772836951036,-151.0,0.00047237,120]
[407857354,1772836951077,-1158.388071,0.00047237,120]
[407857355,1772836951119,-151.0,0.00047237,120]
[407857356,1772836951305,-1158.388071,0.00047237,120]
[407857357,1772836951361,-223.396597,0.00047237,120]
[407857358,1772836951408,-151.0,0.00047237,120]
[407857359,1772836951448,-223.396597,0.00047237,120]
[407857360,1772836951488,-223.396597,0.00047237,120]
[407857361,1772836951526,-1158.388071,0.00047237,120]
[407857362,1772836951566,-1158.388071,0.00047237,120]
[407857363,1772836951607,-223.396597,0.00047237,120]
[407857364,1772836951649,-1158.388071,0.00047237,120]
[407857365,1772836951691,-223.396597,0.00047237,120]
[407857366,1772836951732,-223.396597,0.00047237,120]
[407857367,1772836951773,-223.396597,0.00047237,120]
[407857368,1772836951814,-223.396597,0.00047237,120]
[407857369,1772836951856,-151.0,0.00047237,120]
[407857370,1772836951902,-223.396597,0.00047237,120]
[407857371,1772836951950,-151.0,0.00047237,120]
[407857372,1772836951992,-151.0,0.00047237,120]
[407857373,1772836952032,-151.0,0.00047237,120]
[407857374,1772836952072,-151.0,0.00047237,120]
[407857375,1772836952112,-151.0,0.00047237,120]
[407857376,1772836952154,-151.0,0.00047237,120]
[407857377,1772836952197,-151.0,0.00047237,120]
[407857378,1772836952241,-151.0,0.00047237,120]
[407857379,1772836952285,-151.0,0.00047237,120]
[407857380,1772836952328,-151.0,0.00047237,120]
[407857381,1772836952370,-151.0,0.00047237,120]
[407857382,1772836952414,-151.0,0.00047237,120]
[407857383,1772836952457,-151.0,0.00047237,120]
[407857384,1772836952498,-151.0,0.00047237,120]
[407857385,1772836952539,-151.0,0.00047237,120]
[407857386,1772836952581,-177.711871,0.00047237,120]
[407857387,1772836952622,-177.711871,0.00047237,120]
[407857388,1772836952663,-177.711871,0.00047237,120]
[407857389,1772836952704,-177.711871,0.00047237,120]
[407857390,1772836952752,-177.711871,0.00047237,120]
[407857391,1772836952807,-177.711871,0.00047237,120]
[407857392,1772836952857,-177.711871,0.00047237,120]
[407857393,1772836952906,-177.711871,0.00047237,120]
[407857394,1772836952954,-177.711871,0.00047237,120]
[407857395,1772836952999,-177.711871,0.00047237,120]
[407857396,1772836953044,-177.711871,0.00047237,120]
[407857397,1772836953092,-177.711871,0.00047237,120]
[407857398,1772836953144,-151.0,0.00047237,120]
[407857399,1772836953212,-151.0,0.00047237,120]
[407857400,1772836953263,-151.0,0.00047237,120]
[407857401,1772836953315,-151.0,0.00047237,120]
[407857402,1772836953368,-151.0,0.00047237,120]
[407857403,1772836953414,-150.0,0.00047238,30]
[407857404,1772836953460,-150.0,0.00047243,30]
[407857405,1772836953508,-150.0,0.00047243,30]
[407857406,1772836953558,-4172.79,0.0004725,30]
[407857407,1772836953604,-1501.4,0.0004725,30]
[407857408,1772836953652,-609.19,0.0004725,30]
[407857409,1772836953700,-159.49661076,0.00047256,30]
[407857410,1772836953751,-237.39121081,0.00047256,30]
[407857411,1772836953798,-178.56416906,0.00047256,30]
[407857412,1772836953842,-259.39398879,0.00047256,30]
[407857413,1772836953886,-150.0,0.00047256,30]
[407857414,1772836953938,-496.10721813,0.00047256,30]
[407857415,1772836953998,-196.401106,0.00047256,30]
[407857416,1772836954045,-151.43,0.00047276,120]
[407857417,1772836954092,-150.0,0.00047291,30]
[407857418,1772836954133,-159.49661076,0.00047307,30]
[407857419,1772836954176,-237.39121081,0.00047307,30]
[407857420,1772836954221,-178.56416906,0.00047307,30]
[407857421,1772836954266,-259.39398879,0.00047307,30]
[407857422,1772836954310,-496.10721813,0.00047307,30]
[407857423,1772836954354,-196.401106,0.00047307,30]
[407857424,1772836954401,-150.0,0.0004731,120]
[407857425,1772836954445,-500.0,0.00047315,30]
[407857426,1772836954486,-500.0,0.00047315,30]
[407857427,1772836954528,-150.0,0.00047322,30]
[407857428,1772836954574,-150.0,0.00047322,30]
[407857429,1772836954618,-151.65,0.00047333,120]
[407857430,1772836954659,-150.0,0.00047336,30]
[407857431,1772836954703,-150.0,0.00047345,30]
[407857432,1772836954746,-150.0,0.00047352,120]
[407857433,1772836954792,-159.49661076,0.00047359,30]
[407857434,1772836954836,-237.39121081,0.00047359,30]
[407857435,1772836954886,-178.56416906,0.00047359,30]
[407857436,1772836954930,-259.39398879,0.00047359,30]
[407857437,1772836954977,-496.10721813,0.00047359,30]
[407857438,1772836955022,-196.401106,0.00047359,30]
[407857439,1772836955068,-151.43,0.00047376,120]
[407857440,1772836955112,-150.0,0.00047381,30]
[407857441,1772836955158,-150.0,0.00047381,30]
[407857442,1772836955205,-708.09054838,0.00047397,120]
[407857443,1772836955252,-1855.54657032,0.00047397,120]
[407857444,1772836955302,-282.70276862,0.00047397,120]
[407857445,1772836955349,-657.20487659,0.00047397,120]
[407857446,1772836955395,-877.89819471,0.00047397,120]
[407857447,1772836955441,-1403.90617928,0.00047397,120]
[407857448,1772836955489,-857.47510115,0.00047397,120]
[407857449,1772836955537,-151.0,0.00047397,120]
[407857450,1772836955584,-3796.51,0.00047397,120]
[407857451,1772836955631,-151.0,0.00047397,120]
[407857452,1772836955676,-2370.381515,0.00047397,120]
[407857453,1772836955723,-151.0,0.00047397,120]
[407857454,1772836955768,-151.0,0.00047397,120]
[407857455,1772836955812,-2370.381515,0.00047397,120]
[407857456,1772836955857,-151.0,0.00047397,30]
[407857457,1772836955905,-151.0,0.00047397,120]
[407857458,1772836955951,-2370.381515,0.00047397,120]
[407857459,1772836955995,-2370.38151,0.00047397,120]
[407857460,1772836956040,-4252.23317,0.00047397,120]
[407857461,1772836956251,-4252.23317,0.00047397,120]
[407857462,1772836956299,-151.0,0.00047397,120]
[407857463,1772836956346,-1436.089081,0.00047397,120]
[407857464,1772836956392,-4252.23317,0.00047397,120]
[407857465,1772836956439,-151.0,0.00047397,120]
[407857466,1772836956482,-1436.089081,0.00047397,120]
[407857467,1772836956522,-4252.233177,0.00047397,120]
[407857468,1772836956565,-724.615101,0.00047397,120]
[407857469,1772836956609,-151.0,0.00047397,120]
[407857470,1772836956652,-1436.089081,0.00047397,120]
[407857471,1772836956698,-724.615101,0.00047397,120]
[407857472,1772836956741,-1436.089073,0.00047397,120]
[407857473,1772836956784,-724.615101,0.00047397,120]
[407857474,1772836956827,-724.615107,0.00047397,120]
[407857475,1772836956870,-198.565575,0.00047397,120]
[407857476,1772836956917,-198.565575,0.00047397,120]
[407857477,1772836956959,-198.565575,0.00047397,120]
[407857478,1772836957001,-198.56557,0.00047397,120]
[407857479,1772836957040,-151.0,0.00047397,120]
[407857480,1772836957080,-151.0,0.00047397,120]
[407857481,1772836957121,-151.0,0.00047397,120]
[407857482,1772836957163,-151.0,0.00047397,120]
[407857483,1772836957208,-151.0,0.00047397,120]
[407857484,1772836957252,-151.0,0.00047397,120]
[407857485,1772836957293,-151.0,0.00047397,120]
[407857486,1772836957337,-151.0,0.00047397,120]
[407857487,1772836957382,-151.0,0.00047397,120]
[407857488,1772836957428,-151.0,0.00047397,120]
[407857489,1772836957475,-14006.923144,0.00047397,120]
[407857490,1772836957523,-14006.923144,0.00047397,120]
[407857491,1772836957568,-14006.923144,0.00047397,120]
[407857492,1772836957612,-151.0,0.00047397,120]
[407857493,1772836957656,-150.0,0.000474,83]
[407857494,1772836957705,-150.0,0.000474,30]
[407857495,1772836957750,-159.49661076,0.0004741,30]
[407857496,1772836957799,-237.39121081,0.0004741,30]
[407857497,1772836957848,-178.56416906,0.0004741,30]
[407857498,1772836957895,-259.39398879,0.0004741,30]
[407857499,1772836957938,-496.10721813,0.0004741,30]
[407857500,1772836957982,-196.401106,0.0004741,30]
[407857501,1772836958022,-150.0,0.00047413,30]
[407857502,1772836958066,-151.65,0.00047433,120]
[407857503,1772836958106,-150.0,0.00047434,30]
[407857504,1772836958147,-150.0,0.00047443,30]
[407857505,1772836958190,-150.0,0.00047455,30]
[407857506,1772836958235,-150.0,0.00047458,30]
[407857507,1772836958277,-159.49661076,0.00047462,30]
[407857508,1772836958321,-237.39121081,0.00047462,30]
[407857509,1772836958364,-178.56416906,0.00047462,30]
[407857510,1772836958411,-259.39398879,0.00047462,30]
[407857511,1772836958455,-496.10721813,0.00047462,30]
[407857512,1772836958499,-196.401106,0.00047462,30]
[407857513,1772836958541,-151.0,0.00047469,120]
[407857514,1772836958581,-201.281338,0.00047469,120]
[407857515,1772836958621,-151.0,0.00047469,120]
[407857516,1772836958663,-162.929466,0.00047469,120]
[407857517,1772836958704,-162.929466,0.00047469,120]
[407857518,1772836958746,-162.929466,0.00047469,120]
[407857519,1772836958787,-162.929473,0.00047469,120]
[407857520,1772836958827,-230.510713,0.00047469,120]
[407857521,1772836958867,-276.169746,0.00047469,120]
[407857522,1772836958909,-151.0,0.00047469,120]
[407857523,1772836958951,-151.0,0.00047469,120]
[407857524,1772836958992,-393.644646,0.00047469,120]
[407857525,1772836959032,-393.644646,0.00047469,120]
[407857526,1772836959071,-151.0,0.00047469,120]
[407857527,1772836959113,-393.644646,0.00047469,120]
[407857528,1772836959154,-151.0,0.00047469,120]
[407857529,1772836959202,-393.64464763,0.00047469,120]
[407857530,1772836959247,-151.0,0.00047469,120]
[407857531,1772836959296,-151.0,0.00047469,120]
[407857532,1772836959345,-151.0,0.00047469,120]
[407857533,1772836959394,-151.0,0.00047469,120]
[407857534,1772836959443,-989.134097,0.00047469,120]
[407857535,1772836959491,-989.134097,0.00047469,120]
[407857536,1772836959535,-989.134097,0.00047469,120]
[407857537,1772836959580,-272.794144,0.00047469,120]
[407857538,1772836959626,-272.794144,0.00047469,120]
[407857539,1772836959672,-272.794144,0.00047469,120]
[407857540,1772836959717,-272.794137,0.00047469,120]
[407857541,1772836959761,-989.134101,0.00047469,120]
[407857542,1772836959805,-151.0,0.00047469,120]
[407857543,1772836959851,-151.0,0.00047469,120]
[407857544,1772836959899,-257.4446,0.00047469,120]
[407857545,1772836959946,-151.0,0.00047469,120]
[407857546,1772836959989,-151.0,0.00047469,120]
[407857547,1772836960029,-151.0,0.00047469,120]
[407857548,1772836960074,-151.43,0.00047476,120]
[407857549,1772836960120,-52383.302937,0.000475,120]
[407857550,1772836960166,-890.16930352,0.000475,120]
[407857551,1772836960212,-6375.93408259,0.000475,120]
[407857552,1772836960258,-1800.0,0.000475,120]
[407857553,1772836960305,-298.0,0.000475,120]
[407857554,1772836960352,-500.0,0.000475,120]
[407857555,1772836960399,-150.0,0.00047504,30]
[407857556,1772836960446,-150.0,0.0004751,30]
[407857557,1772836960491,-159.49661076,0.00047513,30]
[407857558,1772836960535,-237.39121081,0.00047513,30]
[407857559,1772836960580,-178.56416906,0.00047513,30]
[407857560,1772836960623,-259.39398879,0.00047513,30]
[407857561,1772836960667,-496.10721813,0.00047513,30]
[407857562,1772836960711,-196.401106,0.00047513,30]
[407857563,1772836960755,-150.0,0.00047519,30]
[407857564,1772836960799,-150.0,0.00047519,30]
[407857565,1772836960842,-150.0,0.00047532,30]
[407857566,1772836961043,-151.69,0.00047533,120]
[407857567,1772836961088,-150.0,0.00047541,120]
[407857568,1772836961134,-150.0,0.00047565,30]
[407857569,1772836961179,-159.49661076,0.00047565,30]
[407857570,1772836961223,-237.39121081,0.00047565,30]
[407857571,1772836961269,-178.56416906,0.00047565,30]
[407857572,1772836961317,-259.39398879,0.00047565,30]
[407857573,1772836961364,-496.10721813,0.00047565,30]
[407857574,1772836961408,-196.401106,0.00047565,30]
[407857575,1772836961451,-150.0,0.00047565,30]
[407857576,1772836961493,-150.0,0.00047565,30]
[407857577,1772836961536,-150.0,0.00047565,30]
[407857578,1772836961579,-151.43,0.00047576,120]
[407857579,1772836961621,-500.0,0.00047589,30]
[407857580,1772836961660,-512.44,0.00047589,30]
[407857581,1772836961699,-150.0,0.00047595,30]
[407857582,1772836961738,-469.21,0.000476,120]
[407857583,1772836961776,-159.49661076,0.00047616,30]
[407857584,1772836961814,-237.39121081,0.00047616,30]
[407857585,1772836961854,-178.56416906,0.00047616,30]
[407857586,1772836961894,-259.39398879,0.00047616,30]
[407857587,1772836961936,-496.10721813,0.00047616,30]
[407857588,1772836961977,-196.401106,0.00047616,30]
[407857589,1772836962018,-150.0,0.00047619,30]
[407857590,1772836962058,-150.0,0.0004763,30]
[407857591,1772836962099,-150.0,0.00047656,30]
[407857592,1772836962141,-150.0,0.00047656,30]
[407857593,1772836962182,-159.49661076,0.00047667,30]
[407857594,1772836962222,-237.39121081,0.00047667,30]
[407857595,1772836962265,-178.56416906,0.00047667,30]
[407857596,1772836962307,-259.39398879,0.00047667,30]
[407857597,1772836962351,-496.10721813,0.00047667,30]
[407857598,1772836962398,-196.401106,0.00047667,30]
[407857599,1772836962441,-150.0,0.00047674,30]
[407857600,1772836962485,-151.43,0.00047676,120]
[407857601,1772836962527,-150.0,0.00047686,30]
[407857602,1772836962569,-150.0,0.00047686,30]
[407857603,1772836962610,-151974.0,0.000477,60]
[407857604,1772836962651,-151.0,0.000477,120]
[407857605,1772836962695,-151.0,0.000477,120]
[407857606,1772836962737,-151.0,0.000477,120]
[407857607,1772836962779,-151.0,0.000477,120]
[407857608,1772836962825,-1158.388071,0.000477,120]
[407857609,1772836962869,-1158.388071,0.000477,120]
[407857610,1772836962917,-223.396597,0.000477,120]